Cogmind - Beta 17.1 @@@ ROGUE MODE // 2026.09.08 @ 15:18:18 Player: Rune Result: Destroyed by Y-45 Defender with Beam Rifle Performance ------------- Evolutions (2) 1000 Regions Visited (4) 800 Robots Destroyed (36) 180 Value Destroyed (874) 874 Prototype IDs (2) 40 Alien Tech Used (0) 0 Bonus (68) 68 TOTAL SCORE: 2962 Bonus ------- Follower Combat Kills 68 Cogmind --------- Core Integrity 0/550 Matter 260/300 Energy 35/100 System Corruption 0% Temperature Cool (9) Movement Core (350) Ox6 Location -8/Materials Parts ------- > --- POWER (1) -------- (None) > --- PROPULSION (2) --- (None) > --- UTILITY (4) ------ Medium Storage Unit > --- WEAPON (4) ------- Minigun Rocket Launcher Mini Grenade Launcher Datajack > --- INVENTORY (10) --- Spread Laser Light Assault Rifle Peak State ------------ > --- POWER ------------ Ion Engine > --- PROPULSION ------- Aluminum Leg Aluminum Leg > --- UTILITY ---------- Small Storage Unit Medium Storage Unit Medium Matter Pod System Restoration Module > --- WEAPON ----------- Advanced Beam Rifle EM Pulse Cannon Heavy Assault Rifle Minigun > --- INVENTORY -------- Heat Sink Particle Gun Spread Laser Light Assault Rifle Shotgun Rocket Launcher Mini Grenade Launcher Datajack Katana [Rating: 23] Favorites ----------- Power Ion Engine Engine Ion Engine Power Core Light Nuclear Core Propulsion Aluminum Leg Leg Aluminum Leg Wheel Wheel Hover Unit Aerolev Unit Utility Small Storage Unit Device System Restoration Module Storage Small Storage Unit Protection Propulsion Shielding Weapon Light Assault Rifle Energy Gun Advanced Beam Rifle Energy Cannon EM Pulse Cannon Ballistic Gun Light Assault Rifle Launcher Rocket Launcher Special Weapon Plasma Cutter Slashing Weapon Katana Special Melee Weapon Datajack Build | -11 -10 -10 -9 -8 ------- Run | Yrd Mat Min Mat Mat Slots Evolved 4 | . . . 2 2 Power . | . . . . . Propulsion . | . . . . . Utility 2 | . . . 1 1 Weapon 2 | . . . 1 1 Parts Attached 35 | 6 3 2 13 11 Power 4 | 1 . . 2 1 Engine 3 | 1 . . 1 1 Core 1 | . . . 1 . Reactor . | . . . . . Propulsion 6 | 2 . . 3 1 Treads . | . . . . . Leg 4 | 2 . . 2 . Wheel 1 | . . . 1 . Hover 1 | . . . . 1 Flight . | . . . . . Utility 8 | 1 1 . 3 3 Device 3 | . . . 1 2 Storage 3 | 1 . . 1 1 Processor . | . . . . . Hackware . | . . . . . Protection 2 | . 1 . 1 . Artifact . | . . . . . Weapon 17 | 2 2 2 5 6 Energy Gun 5 | 1 1 . 1 2 Energy Cannon 1 | . . . . 1 Ballistic Gun 6 | 1 1 1 2 1 Ballistic Cannon . | . . . . . Launcher 2 | . . 1 . 1 Special Weapon 1 | . . . 1 . Impact Weapon . | . . . . . Slashing Weapon 1 | . . . . 1 Piercing Weapon . | . . . . . Special Melee Weapon 1 | . . . 1 . Unidentified Prototypes 2 | . . . . 2 Parts Lost 15 | . . . 4 11 Power 2 | . . . 1 1 Propulsion 3 | . . . 1 2 Utility 4 | . . . 1 3 Weapon 6 | . . . 1 5 Highest Loss Streak 5 | . . . 2 5 To Critical Strikes 1 | . . . . 1 Average Backups 5 | 1 3 5 4 7 Power . | . . 1 1 . Propulsion . | . . . . . Utility . | . . 1 . . Weapon 3 | . 1 1 2 5 Tool/Special . | . . . . . Unused Backups 5 | 1 . 1 1 2 Power . | . . . . . Propulsion 2 | 1 . . . 1 Utility 2 | . . 1 . 1 Weapon 1 | . . . 1 . Tool/Special . | . . . . . Average Slot Usage (%) 93 | . 95 100 97 83 Engine 10 | . 14 14 8 7 Leg 20 | . 26 28 19 12 Device 2 | . . . 2 7 Storage 19 | . 14 14 21 24 Protection 7 | . 11 14 8 . Energy Gun 6 | . 14 1 6 7 Energy Cannon 2 | . . . . 6 Ballistic Gun 13 | . 14 14 11 13 Launcher 5 | . . 12 5 1 Special Melee Weapon 1 | . . . 6 . Peak Build Rating 23 | 6 7 8 13 23 Average Rating 12 | 4 6 7 11 18 On Entrance 6 | . 6 7 8 12 Avg Prop Armor Cover (%) 7 | . . 8 6 . Naked Turns . | . . . . . Heaviest Build 39 | 13 14 16 24 39 Greatest Support 20 | 20 20 20 20 20 Greatest Overweight (x) 11 | 3 1 1 5 11 Average Overweight (x) . | . . . . 1 Largest Inventory Capacity 10 | 8 8 8 8 10 Average Capacity 8 | 7 8 8 8 9 Most Carried 10 | 4 5 7 8 10 Average Carried 5 | 1 3 5 4 7 Final Capacity 10 | 8 8 8 8 10 Final Carried 5 | 1 5 5 4 2 Class Distribution -------------------- 60% | Mutant 24% | Gunner 8% | Skirmisher 5% | Tank Dominant Class ---------------- Mutant | -10/Materials Mutant | -10/Mines Mutant | -9/Materials Gunner | -8/Materials Resources | -11 -10 -10 -9 -8 ----------- Run | Yrd Mat Min Mat Mat Matter Collected 1223 | 260 141 147 398 277 Remotely . | . . . . . Salvage Created 1175 | . 151 44 485 495 Parts 77 | . 15 6 23 33 Haulers Intercepted 1 | . . . . 1 Recyclers Shooed 2 | . . . . 2 Parts Field Recycled . | . . . . . Retrieved Matter . | . . . . . Parts Self-Destructed . | . . . . . Prevented . | . . . . . Parts Restored . | . . . . . Kills | -11 -10 -10 -9 -8 ------- Run | Yrd Mat Min Mat Mat Combat Hostiles Destroyed 22 | . 6 3 7 6 Melee 4 | . . . . 4 Guns 13 | . 6 3 3 1 Cannons 1 | . . . . 1 AOE 4 | . . . 4 . Classes Destroyed 9 | . 2 . 5 2 Worker 3 | . . . 1 2 Builder 4 | . . . 2 2 Hauler 1 | . . . . 1 Recycler 4 | . . . 3 1 Watcher 2 | . . . 1 1 Swarmer 6 | . 3 3 . . Grunt 9 | . 3 . 5 1 Sentry 6 | . . . 2 4 Hunter 1 | . . . . 1 Best Kill Streak 5 | . 3 3 5 5 Combat Bots Only 3 | . 3 3 3 1 Max Kills in Single Turn 2 | . 1 1 2 2 Gunslinging . | . . . . . Exploded 2 | . . . 2 . Melee 1 | . . . . 1 Uniques/NPCs Destroyed . | . . . . . Combat | -11 -10 -10 -9 -8 -------- Run | Yrd Mat Min Mat Mat Hostile Shots Fired 282 | . 21 8 50 203 Missed 83 | . 4 2 17 60 Hits 199 | . 17 6 33 143 Projectile 199 | . 17 6 33 143 Critical Strikes 8 | . 1 1 1 5 Actively Blocked 2 | . . 1 1 . Damage Taken 2385 | . 165 49 506 1665 Core 654 | . 29 . 73 552 Absorbed by Shields . | . . . . . Redirected to Shielding 51 | . 6 8 37 . Regen/Repaired (Parts) 9 | . 9 . . . Core Remaining (%) 89 | 100 . 88 81 . Volleys Fired 77 | . 17 7 34 19 Largest 4 | . 2 2 3 4 Hottest 172 | . 70 70 121 172 Shots Fired 177 | . 34 14 59 70 Gun 138 | . 34 14 39 51 Cannon 17 | . . . . 17 Launcher 22 | . . . 20 2 Special . | . . . . . Kinetic 83 | . 17 7 25 34 Thermal 55 | . 17 7 14 17 Explosive 22 | . . . 20 2 Electromagnetic 17 | . . . . 17 Robot Hit Streak 6 | . 5 3 6 6 Robot Miss Streak 11 | . 2 1 11 2 Penetration Max . | . . . . . Secondary Targets 3 | . 2 . 1 . Max Gunslinging Chain 1 | . 1 . 1 . Shots Hit Robots 117 | . 21 8 38 50 Core Hits 66 | . 10 3 33 20 Critical Kills 1 | . . . . 1 Critical Parts Destroyed . | . . . . . Critical Strikes 3 | . 1 . . 2 Burn 1 | . 1 . . . Destroy 1 | . . . . 1 Sever 1 | . . . . 1 Melee Attacks 18 | . . . . 18 Impact . | . . . . . Slashing 18 | . . . . 18 Piercing . | . . . . . Sneak Attacks 2 | . . . . 2 Combat Hostiles . | . . . . . Follow-up Attacks . | . . . . . Damage Inflicted 3032 | . 230 81 1529 1192 Guns 1113 | . 230 81 363 439 Cannons 250 | . . . . 250 Explosions 1248 | . . . 1166 82 Melee 420 | . . . . 420 Ramming 1 | . . . . 1 Kinetic 606 | . 103 32 227 244 Thermal 968 | . 127 49 533 259 Explosive 787 | . . . 769 18 Electromagnetic 250 | . . . . 250 Impact . | . . . . . Slashing 420 | . . . . 420 Piercing . | . . . . . Highest Corruption . | . . . . . Average Corruption . | . . . . . Corruption Purged . | . . . . . Corruption Blocked . | . . . . . Overload Shots . | . . . . . Overflow Damage 70 | . . . 47 23 Projectiles 5 | . . . . 5 Explosions 47 | . . . 47 . Melee 18 | . . . . 18 Knockbacks . | . . . . . Impact . | . . . . . Kinetic . | . . . . . Secondary . | . . . . . Self-Inflicted Damage 53 | . . . 53 . Shots 3 | . . . 3 . Rammed 1 | . . . . 1 Targets Rammed 1 | . . . . 1 Kicked . | . . . . . Crushed . | . . . . . Highest Temperature 258 | . 150 80 190 258 Average Temperature 65 | . 66 31 51 83 Received Heat Transfer 645 | . 30 . 165 450 Siege Activations . | . . . . . Martial Activations . | . . . . . Shielding Activations . | . . . . . Robots Disrupted . | . . . . . Combat Hostiles . | . . . . . Robots Corrupted . | . . . . . Combat Hostiles . | . . . . . Parts Fried 2 | . . . . 2 Impact Corruptions . | . . . . . Robots Melted . | . . . . . Combat Hostiles . | . . . . . Parts Melted . | . . . . . Heat Transferred 1442 | . 444 148 380 470 Parts Sabotaged . | . . . . . Parts Stolen . | . . . . . Parts Stripped . | . . . . . Power Chain Reactions 1 | . . . . 1 Alert | -11 -10 -10 -9 -8 ------- Run | Yrd Mat Min Mat Mat Maximum Alert Level 1 | . . . 1 . Low Security (%) 86 | 100 100 100 43 100 Level 1 13 | . . . 56 . Level 2 . | . . . . . Level 3 . | . . . . . Level 4 . | . . . . . Level 5 . | . . . . . High Security . | . . . . . Max Security . | . . . . . Peak Influence 260 | . 90 83 260 90 Initial 85 | . . 8 . 85 Average 57 | . 42 11 164 26 Influence Increases 1017 | . 142 85 520 270 Destroy 0b10 Robot/C 480 | . 120 60 180 120 Destroy 0b10 Robot/NC 70 | . . . 35 35 Destroy Leader 126 | . 20 10 42 54 Allied During Kill 12 | . . . 12 . Successful Hack 9 | . 2 . 7 . Disable Machine 120 | . . . 105 15 Destroy Structure 110 | . . . 94 16 Lose Combat Pursuer 90 | . . 15 45 30 Influence Decreases 1017 | . 120 107 316 474 Entered New Map 133 | . . 14 . 119 Time Decay 732 | . 120 93 236 283 Lost Part 112 | . . . 40 72 Lost Ally 40 | . . . 40 . Squads Dispatched 2 | . 1 . . 1 Investigation 1 | . 1 . . . Extermination . | . . . . . Reinforcement 1 | . . . . 1 Assault . | . . . . . Garrison . | . . . . . Intercept . | . . . . . Searches Triggered . | . . . . . Construction Impeded . | . . . . . Haulers Reinforced . | . . . . . Active Scanning Responses . | . . . . . Cargo Convoy Interrupts . | . . . . . Stealth | -11 -10 -10 -9 -8 --------- Run | Yrd Mat Min Mat Mat Distress Signals 3 | . 1 . . 2 Communications Jammed . | . . . . . Distress Signals . | . . . . . Times Spotted 45 | . 8 3 13 21 Peak Tracking Total 6 | . 4 3 3 6 Tactical Retreats 5 | . . 1 3 1 Traps | -11 -10 -10 -9 -8 ------- Run | Yrd Mat Min Mat Mat Traps Triggered 2 | . 1 . 1 . Indirectly . | . . . . . Trap Hack Attempts . | . . . . . Triggered . | . . . . . Disarmed . | . . . . . Reprogrammed . | . . . . . Reused . | . . . . . Traps Extracted . | . . . . . Installed . | . . . . . Triggered . | . . . . . Machines | -11 -10 -10 -9 -8 ---------- Run | Yrd Mat Min Mat Mat Machines Disabled 8 | . . . 7 1 Max in Single Turn 2 | . . . 2 1 Machines Repaired . | . . . . . Machines Dismantled . | . . . . . Machines Sabotaged . | . . . . . Overloaded Fab Kills . | . . . . . Hacking | -11 -10 -10 -9 -8 --------- Run | Yrd Mat Min Mat Mat Machines Accessed 7 | . 4 . 2 1 Terminals 4 | . 3 . 1 . Fabricators . | . . . . . Repair Stations 1 | . 1 . . . Recycling Units . | . . . . . Scanalyzers 2 | . . . 1 1 Garrison Access . | . . . . . Total Hacks 12 | . 6 . 5 1 Successful 10 | . 5 . 4 1 Failed 2 | . 1 . 1 . Catastrophic . | . . . . . Database Lockouts . | . . . . . Manual . | . . . . . Terminals 6 | . 4 . 2 . Fabricators . | . . . . . Repair Stations 2 | . 2 . . . Recycling Units . | . . . . . Scanalyzers 4 | . . . 3 1 Garrison Access . | . . . . . Terminal Hacks 5 | . 3 . 2 . Record 2 | . 1 . 1 . Alert Level 1 | . 1 . . . Reinforcement Status 1 | . . . 1 . Zone Layout 1 | . 1 . . . Fabricator Hacks . | . . . . . Repair Station Hacks 2 | . 2 . . . Scan Component 1 | . 1 . . . Repair 1 | . 1 . . . Recycling Unit Hacks . | . . . . . Scanalyzer 3 | . . . 2 1 Retrieve Study 3 | . . . 2 1 Garrison Access Hacks . | . . . . . Unauthorized Hacks . | . . . . . Terminals . | . . . . . Fabricators . | . . . . . Repair Stations . | . . . . . Recycling Units . | . . . . . Scanalyzers . | . . . . . Garrison Access . | . . . . . Data Cores Recovered . | . . . . . Used . | . . . . . Hacking Detections 3 | . 1 . 2 . Full Trace Events . | . . . . . Feedback Events . | . . . . . Feedback Blocked . | . . . . . Robot Schematics Acquired . | . . . . . Robots Built . | . . . . . Authchips . | . . . . . Time . | . . . . . Total Robot Build Rating . | . . . . . Part Schematics Acquired . | . . . . . Parts Built . | . . . . . Authchips . | . . . . . Time . | . . . . . Total Part Build Rating . | . . . . . Part Studies Acquired 3 | . . . 2 1 Parts Repaired 1 | . 1 . . . Time 26 | . 26 . . . Parts Recycled . | . . . . . Recycled Matter . | . . . . . Retrieved Matter . | . . . . . Retrieved Components . | . . . . . Parts Scanalyzed . | . . . . . Part Schematics Acquired . | . . . . . Parts Damaged . | . . . . . Bothacking | -11 -10 -10 -9 -8 ------------ Run | Yrd Mat Min Mat Mat Used RIF Installer . | . . . . . Robots Hacked . | . . . . . Non-combat . | . . . . . Combat . | . . . . . Robot Hacks Applied . | . . . . . Relay Couplers Released . | . . . . . Fabnet Peak Effective % . | . . . . . Robots Rewired . | . . . . . Allies Hacked . | . . . . . Hacks Repelled . | . . . . . Allies | -11 -10 -10 -9 -8 -------- Run | Yrd Mat Min Mat Mat Total Allies 3 | . . 3 . . Largest Group 3 | . . 3 2 . Highest-Rated Group 40 | . . 40 24 . Highest-Rated Ally 16 | . . 16 16 . Total Orders . | . . . . . Ally Attacks 9 | . . . 9 . Total Damage 94 | . . . 94 . Kills 2 | . . . 2 . Allies Corrupted . | . . . . . Allies Melted . | . . . . . Intel | -11 -10 -10 -9 -8 ------- Run | Yrd Mat Min Mat Mat Active Infowar (turns) 236 | . . . 132 104 Terrain 236 | . . . 132 104 Robot Analysis Total . | . . . . . Derelict Logs Recovered . | . . . . . Drone Launches . | . . . . . Drone Recoveries . | . . . . . Exploration | -11 -10 -10 -9 -8 ------------- Run | Yrd Mat Min Mat Mat Turns Passed 2650 | 96 314 732 659 849 Spaces Moved 1472 | 64 188 526 367 327 Core 70 | 16 . . 12 42 Treads . | . . . . . Legs 1313 | 48 188 526 273 278 Wheels 82 | . . . 82 . Hover 7 | . . . . 7 Flight . | . . . . . Fastest Speed 50 | 50 120 120 95 175 Average Speed 151 | 129 120 132 144 213 Slowest Speed 600 | 200 190 190 300 600 Overloaded Moves . | . . . . . Propulsion Burnouts . | . . . . . Robots Hopped . | . . . . . Potential Cave-ins . | . . . . . Cave-ins Triggered . | . . . . . Exploration Rate (%) 31 | 4 35 67 30 21 Regions Visited 4 Branch Regions 1 Pre-discovered Areas . | . . . . . Known Exits Taken . | . . . . . Unknown Exits Taken 4 | 1 1 1 1 . Scrap Searched 1 | . . 1 . . Spaces Dug . | . . . . . Terrain Destroyed 141 | . . . 114 27 Melee . | . . . . . Projectile . | . . . . . AOE 141 | . . . 114 27 Terrain Rammed . | . . . . . Walls Destroyed . | . . . . . Machines Disabled . | . . . . . Actions | -11 -10 -10 -9 -8 --------- Run | Yrd Mat Min Mat Mat Total 1740 | 78 246 549 451 416 Wait 33 | . 26 7 . . Move 1468 | 63 187 525 366 327 Hop . | . . . . . Pick Up 43 | 8 8 2 12 13 Fast Attach . | . . . . . Attach 50 | 6 4 3 18 19 Detach 28 | . 2 3 12 11 Swap . | . . . . . Drop 20 | 1 2 2 7 8 Fire 77 | . 17 7 34 19 Melee 18 | . . . . 18 Ram 1 | . . . . 1 Kick . | . . . . . Crush . | . . . . . Escape Stasis . | . . . . . Rewire . | . . . . . Trap . | . . . . . Miscellaneous 2 | . . . 2 . Route ------- -11/Scrapyard -10/Materials -10/Mines (discovered 2 exits: *Mat x2) -9/Materials (discovered 2 exits: *Mat / [*Min]) -8/Materials History --------- Turn | Location | Event 27 | -11/Scrapyard | Discovered new exit (range 13) 97 | -11/Scrapyard | Entered Materials 306 | -10/Materials | Build established: Mutant 356 | -10/Materials | Repaired Aluminum Leg 383 | -10/Materials | Discovered new exit (range 13) 411 | -10/Materials | Entered Mines 412 | -10/Mines | Met a Derelict bent on vengeance 418 | -10/Mines | Received a Rocket Launcher from a helpful Derelict 627 | -10/Mines | Discovered new exit (range 4) 668 | -10/Mines | Discovered new exit (range 10) 875 | -10/Mines | Assisted by bots powering up and referring to "LRC-V3" 1143 | -10/Mines | Entered Materials 1143 | -9/Materials | Accompanied by 2 allies 1143 | -9/Materials | Evolved 2 slots: Utility x1, Weapon x1 1190 | -9/Materials | Discovered new exit (range 13) 1783 | -9/Materials | Discovered new exit (range 11) 1802 | -9/Materials | Entered another Materials area 1802 | -8/Materials | Evolved 2 slots: Utility x1, Weapon x1 2207 | -8/Materials | Build established: Gunner 2518 | -8/Materials | Lost 3 parts (1p1n1w) 2601 | -8/Materials | Lost 5 parts (2u3w) 2602 | -8/Materials | Core integrity fell below 50% 2636 | -8/Materials | Core integrity fell below 20% 2651 | -8/Materials | Destroyed by Y-45 Defender with Beam Rifle Last Messages --------------- blocked, but can have serious negative consequences. Neutrino Reactor explodes. S-10 Pest destroyed. Sml. Storage Unit destroyed. S-10 Pest destroyed. Chain reaction triggered in Corrupted Lgt. Ion Engine. Door malfunctions. U-05 Engineer lays Concrete. K-01 Serf collects debris. U-05 Engineer lays Concrete. K-01 Serf collects debris. U-05 Engineer lays Concrete. K-01 Serf collects debris. U-05 Engineer lays Concrete. Y-45 Defender misfires. K-01 Serf collects debris. U-05 Engineer lays Concrete. U-05 Engineer repairs door. Map ----- +----------------------------------------------------+ | ?????????????????????????????????????????????????? | | ?????????????????????????????????????????????????? | | ?????????????????????????????????????????????????? | | ?????????????????????????????????????????????????? | | ?????????????????????????????????????????????????? | | ?????????????????????????????????????????????????? | | ?????????????????????????????????????????????????? | | ?????????????????????????????????????????????????? | | ?????????????????????????????????????????????????? | | ?????????????????????????????????????????????????? | | ?????????????????????????????????????????????????? | | ?????????????????????????????????????????????????? | | ?????????????????????????????"???????????????????? | | ???????????????????????????? ""??????????????????? | | ???????????????????????????? "???????????????????? | | ???????????????????????????? ???????????????????? | | ?????????????????????????###+#???????????????????? | | ????????????????????????# ???????????????????? | | ????????????????????????# sk????????????????????? | | ????????????????????????# ????????????????????? | | ????????????????????????# ss#????????????????????? | | ????????????????????????# s#????????????????????? | | ????????????????????????# #????????????????????? | | ????????????????????????+ #????????????????????? | | ????????????????????????# #????????????????????? | | ???????????????###??????#@ #????????????????????? | | ???????????????# ######## ##???????????????????? | | ??????????? ??# % # #???????????????????? | | ???????????# ?#% * #Y #???????????????????? | | ???????????# ?#= / #???????????????????? | | ???????????# "[ # #???????????????????? | | ???????????+ #= # #???????????????????? | | ???????????# # ## ##???????????????????? | | ???????????# " ## #????????????????????? | | ???????????# # "" ]## #????????????????????? | | ???????????# # "Y ## #????????????????????? | | ???????????# # "" #? #????????????????????? | | ???????????# # #? #????????????????????? | | ???????????# ##+######? #????????????????????? | | ???????????# #?????? / ????????????????????? | | ???????????# #?????? ????????????????????? | | #####??????# %#?????? " +???????????????????? | | #?????###/###+##????? #???????????????????? | | ####### !% #??????? ????????????????????? | | + *[ #?????????????????????????????? | | ####### !! #?????????????????????????????? | | #?????# !! #?????????????????????????????? | | ######## !! #?????????????????????????????? | | =# # #?????????????????????????????? | | !# ! # #?????????????????????????????? | +----------------------------------------------------+ Best States ------------- Heat Dissipation 41 Energy Generation 14 Energy Capacity 250 Matter Stores 390 Matter Capacity 400 Sight Range 16 Terrain Scan Range 14 Terrain Scan Density 10 Armor Coverage 150 Propulsion Shielding 33 Evasion (%) 55 Item Schematics ----------------- None Robot Schematics ------------------ None Fabricated ------------ Nothing Repaired ---------- Aluminum Leg | 90% | -10/Materials Studied --------- Datajack | -9/Materials | Hacked Rocket Launcher | -9/Materials | Hacked Aluminum Leg | -8/Materials | Hacked Alien Tech Used ----------------- None Achievements -------------- That Tickles Challenges ------------ None Game ------ Seed EtherialGammaSpecial Manual? 0 Play Time 00:42:05 Cumulative 15.6 hours Start 2026.09.08 @ 14:36:08 End 2026.09.08 @ 15:18:18 Sessions 1 Manual Loads 0 Difficulty Rogue Special Mode None Game No. 52 Rogue 52 Adventurer 0 Explorer 0 Win Type - Total 0 Types 0/0/0/0/0/0/0/0/0/0 Lore% 5 Gallery% 13 Achievement% 11 Wizard Run 0 Options --------- Layout 1 ASCII 0 Keyboard 1 Movement Numpad Keybinds 0 Fullscreen 1 Font 32/SmallcapsGlow Map View 50x35 Zoom Use 0% Tactical HUD 0 Map Filters NONE Filters NONE Steam 1 RUN: 714c86bd-e84b-42b3-9595-b4aee4e9b208